bitfinex-derivatives/quotes_BNBF0:USTF0_20250221
["timestamp","ask_amount","ask_price","bid_price","bid_amount"]
[1740130627310,2.25007961,657.71,656.14,0.30481299]
[1740130628413,2.25007961,657.7,656.14,0.30481299]
[1740130629417,3.10222732,658.0,656.14,0.30481299]
[1740130629713,3.10222732,657.99,656.15,1.5884125]
[1740130629914,3.10222732,657.98,656.17,0.30479906]
[1740130630116,3.10222732,657.97,656.17,0.30479906]
[1740130630317,3.10222732,657.96,656.17,0.30479906]
[1740130630512,3.10222732,657.95,656.17,0.30479906]
[1740130630715,3.10222732,657.94,656.17,0.30479906]
[1740130630915,3.10222732,657.93,656.17,0.30479906]
[1740130631218,3.10222732,657.92,656.17,0.30479906]
[1740130631418,3.10222732,657.91,656.17,0.30479906]
[1740130631619,3.10222732,657.9,656.17,0.30479906]
[1740130631819,3.10222732,657.89,656.17,0.30479906]
[1740130632018,3.10222732,657.88,656.17,0.30479906]
[1740130632212,2.24777094,657.92,656.17,0.30479906]
[1740130632213,3.10222732,657.87,656.17,0.30479906]
[1740130632413,0.30393289,658.04,656.17,0.30479906]
[1740130632414,5.34999826,657.86,656.48,1.11787049]
[1740130632719,3.10222732,657.85,656.5,0.30464584]
[1740130632919,3.10222732,657.84,656.5,0.30464584]
[1740130633217,3.10222732,657.83,656.5,0.30464584]
[1740130633413,3.10222732,657.82,656.5,0.30464584]
[1740130633615,3.10222732,657.81,656.5,0.30464584]
[1740130633816,3.10222732,657.8,656.5,0.30464584]
[1740130634016,2.24777094,657.86,656.5,0.30464584]
[1740130634017,3.10222732,657.79,656.5,0.30464584]
[1740130634216,2.24777094,657.86,656.5,0.30464584]
[1740130634819,2.24777094,657.85,656.5,0.30464584]
[1740130635217,2.24777094,657.85,656.53,1.11787049]
[1740130635422,2.24777094,657.85,656.55,0.30462264]
[1740130636022,2.24777094,657.84,656.55,0.30462264]
[1740130637123,2.24777094,658.03,656.55,0.30462264]
[1740130637823,3.11065993,658.02,656.55,0.30462264]
[1740130638024,3.11065993,658.01,656.55,0.30462264]
[1740130638218,5.35843087,658.0,656.55,0.30462264]
[1740130638423,3.11065993,657.99,656.55,0.30462264]
[1740130638619,3.11065993,657.98,656.55,0.30462264]
[1740130638820,3.11065993,657.97,656.55,0.30462264]
[1740130639023,3.11065993,657.96,656.55,0.30462264]
[1740130639225,3.11065993,657.99,656.55,0.30462264]
[1740130639524,3.11065993,657.98,656.55,0.30462264]
[1740130639725,3.11065993,657.99,656.55,0.30462264]
[1740130639928,2.24777094,657.98,656.55,0.30462264]
[1740130641424,0.30393289,658.04,656.55,0.30462264]
[1740130643727,3.11186956,658.03,656.55,0.30462264]
[1740130643928,3.11186956,658.02,656.55,0.30462264]
[1740130644130,5.3596405,658.01,656.55,0.30462264]
[1740130644427,3.11186956,658.0,656.55,0.30462264]
[1740130644728,3.11186956,657.99,656.55,0.30462264]
[1740130644929,3.11186956,657.98,656.55,0.30462264]
[1740130645125,3.11186956,657.97,656.55,0.30462264]
[1740130645427,3.11186956,657.96,656.55,0.30462264]
[1740130645629,3.11186956,657.95,656.55,0.30462264]
[1740130645825,3.11186956,657.94,656.55,0.30462264]
[1740130646027,3.11186956,657.93,656.55,0.30462264]
[1740130646222,3.11186956,657.92,656.55,0.30462264]
[1740130646527,3.11186956,657.91,656.55,0.30462264]
[1740130646731,3.11186956,657.9,656.55,0.30462264]
[1740130646925,3.11186956,657.89,656.55,0.30462264]
[1740130647125,3.11186956,657.88,656.55,0.30462264]
[1740130647328,3.11186956,657.87,656.55,0.30462264]
[1740130647528,3.11186956,657.86,656.55,0.30462264]
[1740130647723,3.11186956,657.85,656.55,0.30462264]
[1740130648027,3.11186956,657.84,656.55,0.30462264]
[1740130648227,3.11186956,657.83,656.55,0.30462264]
[1740130648428,3.11186956,657.82,656.55,0.30462264]
[1740130648630,5.3596405,657.81,656.55,0.30462264]
[1740130648825,3.11186956,657.8,656.55,0.30462264]
[1740130649037,3.11186956,657.79,656.55,0.30462264]
[1740130649331,3.11186956,657.78,656.55,0.30462264]
[1740130649632,5.3596405,657.77,656.55,0.30462264]
[1740130649833,3.11186956,657.76,656.55,0.30462264]
[1740130650133,3.11186956,657.75,656.55,0.30462264]
[1740130650325,3.11186956,657.74,656.55,0.30462264]
[1740130650524,3.11186956,657.73,656.55,0.30462264]
[1740130650725,3.11186956,657.72,656.55,0.30462264]
[1740130651026,3.11186956,657.71,656.55,0.30462264]
[1740130651231,3.11186956,657.7,656.55,0.30462264]
[1740130651431,3.11186956,657.69,656.55,0.30462264]
[1740130651630,3.11186956,657.68,656.55,0.30462264]
[1740130651832,3.11186956,657.67,656.55,0.30462264]
[1740130652029,3.11186956,657.66,656.55,0.30462264]
[1740130652227,3.11186956,657.65,656.55,0.30462264]
[1740130652432,3.11186956,657.64,656.55,0.30462264]
[1740130652632,5.3596405,657.63,656.55,0.30462264]
[1740130652827,2.24777094,657.63,656.55,0.30462264]
[1740130654637,1.58867234,657.75,656.55,0.30462264]
[1740130654937,3.11440294,657.74,656.55,0.30462264]
[1740130655139,3.11440294,657.73,656.55,0.30462264]
[1740130655335,3.11440294,657.72,656.55,0.30462264]
[1740130655534,3.11440294,657.71,656.55,0.30462264]
[1740130655738,3.11440294,657.7,656.55,0.30462264]
[1740130655932,3.11440294,657.69,656.55,0.30462264]
[1740130656137,3.11440294,657.68,656.55,0.30462264]
[1740130656340,3.11440294,657.67,656.55,0.30462264]
[1740130656539,3.11440294,657.66,656.55,0.30462264]
[1740130656740,5.36217388,657.65,656.55,0.30462264]
[1740130656942,3.11440294,657.64,656.55,0.30462264]
[1740130657141,3.11440294,657.63,656.55,0.30462264]
[1740130657342,3.11440294,657.62,656.55,0.30462264]
[1740130657643,2.24777094,657.65,656.55,0.30462264]
[1740130657842,5.36401377,657.64,656.55,0.30462264]
[1740130658038,3.11624283,657.63,656.55,0.30462264]
[1740130658245,2.24777094,657.64,656.55,0.30462264]
[1740130659344,2.24777094,657.63,656.55,0.30462264]
[1740130660845,3.11694836,657.99,656.55,0.30462264]
[1740130661047,2.24777094,658.0,656.55,0.30462264]
[1740130661249,3.11692969,657.99,656.55,0.30462264]
[1740130661447,3.11692969,657.98,656.55,0.30462264]
[1740130661647,2.24777094,658.0,656.55,0.30462264]
[1740130661848,3.11710166,657.99,656.55,0.30462264]
[1740130662046,2.24777094,658.0,656.55,0.30462264]
[1740130662547,2.24777094,657.99,656.55,0.30462264]
[1740130664146,2.24777094,657.98,656.55,0.30462264]
[1740130664548,3.11713165,657.97,656.55,0.30462264]
[1740130664849,3.11713165,657.96,656.55,0.30462264]
[1740130665050,2.24777094,657.98,656.55,0.30462264]
[1740130665249,3.11711324,657.97,656.55,0.30462264]
[1740130665450,3.11711324,657.96,656.55,0.30462264]
[1740130665651,3.11711324,657.95,656.55,0.30462264]
[1740130665950,3.11711324,657.94,656.55,0.30462264]
[1740130666151,3.11711324,657.93,656.55,0.30462264]
[1740130666351,3.11711324,657.92,656.55,0.30462264]
[1740130666544,2.24777094,657.96,656.55,0.30462264]
[1740130666746,3.11745463,657.95,656.55,0.30462264]
[1740130666950,3.11745463,657.94,656.55,0.30462264]
[1740130667147,2.24777094,657.94,656.55,0.30462264]
[1740130668148,3.11796081,657.93,656.55,0.30462264]
[1740130668449,2.24777094,657.94,656.55,0.30462264]
[1740130668650,3.11835962,657.93,656.55,0.30462264]
[1740130668851,2.24777094,657.93,656.55,0.30462264]
[1740130669148,3.11837187,657.92,656.55,0.30462264]
[1740130669353,2.24777094,657.93,656.55,0.30462264]
[1740130669553,3.11915558,657.92,656.55,0.30462264]
[1740130669746,3.11915009,657.91,656.55,0.30462264]
[1740130669948,3.11915009,657.9,656.55,0.30462264]
[1740130670150,3.11915009,657.89,656.55,0.30462264]
[1740130670354,3.11915009,657.88,656.55,0.30462264]
[1740130670554,3.11915009,657.87,656.55,0.30462264]
[1740130670754,3.11915009,657.86,656.55,0.30462264]
[1740130670949,3.11915009,657.85,656.55,0.30462264]
[1740130671151,3.11915009,657.84,656.55,0.30462264]
[1740130671351,3.11915009,657.83,656.55,0.30462264]
[1740130671550,2.24777094,657.87,656.55,0.30462264]
[1740130671948,5.36734207,657.86,656.55,0.30462264]
[1740130672155,3.11957113,657.85,656.55,0.30462264]
[1740130672448,2.24777094,657.86,656.55,0.30462264]
[1740130672449,3.11957113,657.84,656.55,0.30462264]
[1740130672753,2.24777094,657.86,656.55,0.30462264]
[1740130672946,3.11957034,657.85,656.55,0.30462264]
[1740130673150,2.24777094,657.86,656.55,0.30462264]
[1740130673550,3.11945666,657.85,656.55,0.30462264]
[1740130673748,2.24777094,657.85,656.55,0.30462264]
[1740130674654,3.11939655,657.84,656.55,0.30462264]
[1740130674854,3.11939655,657.83,656.55,0.30462264]
[1740130675053,3.11939655,657.82,656.55,0.30462264]
[1740130675253,3.11939655,657.81,656.55,0.30462264]
[1740130675555,2.24777094,657.82,656.55,0.30462264]
[1740130675757,3.11943292,657.81,656.55,0.30462264]
[1740130675954,3.11943292,657.8,656.55,0.30462264]
[1740130676250,2.24777094,657.82,656.55,0.30462264]
[1740130676449,3.11939519,657.81,656.55,0.30462264]
[1740130676653,3.11939519,657.8,656.55,0.30462264]
[1740130676854,5.36716613,657.79,656.55,0.30462264]
[1740130677051,3.11939519,657.78,656.55,0.30462264]
[1740130677257,3.11939519,657.77,656.55,0.30462264]
[1740130677455,3.11939519,657.76,656.55,0.30462264]
[1740130677754,3.11939519,657.75,656.55,0.30462264]
[1740130677957,3.11939519,657.74,656.55,0.30462264]
[1740130678158,3.11939519,657.73,656.55,0.30462264]
[1740130678355,3.11939519,657.72,656.55,0.30462264]
[1740130678559,1.58809235,657.89,656.55,0.30462264]
[1740130678560,2.24777094,657.71,656.55,0.30462264]
[1740130680563,2.24777094,657.7,656.55,0.30462264]
[1740130682356,1.12521337,658.32,656.55,0.30462264]
[1740130684163,3.11897682,658.58,656.55,0.30462264]
[1740130684357,0.3036929,658.56,656.55,0.30462264]
[1740130684761,2.25854771,658.55,656.55,0.30462264]
[1740130684961,0.30370212,658.54,656.55,0.30462264]
[1740130686863,2.56224983,658.54,656.55,0.30462264]
[1740130687162,1.58751882,658.53,656.55,0.30462264]
[1740130687363,0.30371135,658.52,656.55,0.30462264]
[1740130692166,3.11897682,658.51,656.55,0.30462264]
[1740130692367,3.42269739,658.5,656.55,0.30462264]
[1740130692568,3.422702,658.49,656.55,0.30462264]
[1740130692762,3.42270662,658.48,656.55,0.30462264]
[1740130692958,3.42271123,658.47,656.55,0.30462264]
[1740130693260,5.68126355,658.46,656.55,0.30462264]
[1740130693565,3.42272046,658.45,656.55,0.30462264]
[1740130693765,3.42272507,658.44,656.55,0.30462264]
[1740130693966,3.42272968,658.43,656.55,0.30462264]
[1740130694266,3.4227343,658.42,656.55,0.30462264]
[1740130694467,1.12521337,658.29,656.55,0.30462264]
[1740130694667,3.11897682,658.28,656.55,0.30462264]
[1740130694867,5.37752453,658.27,656.55,0.30462264]
[1740130695069,3.11897682,658.26,656.55,0.30462264]
[1740130695366,3.11897682,658.25,656.55,0.30462264]
[1740130695666,3.11897682,658.24,656.55,0.30462264]
[1740130695867,3.11897682,658.23,656.55,0.30462264]
[1740130696068,5.37752453,658.22,656.55,0.30462264]
[1740130696367,3.11897682,658.21,656.55,0.30462264]
[1740130696562,3.11897682,658.2,656.55,0.30462264]
[1740130696766,3.11897682,658.19,656.55,0.30462264]
[1740130696962,3.11897682,658.18,656.55,0.30462264]
[1740130697167,3.11897682,658.17,656.55,0.30462264]
[1740130697367,3.11897682,658.16,656.55,0.30462264]
[1740130697568,3.11897682,658.15,656.55,0.30462264]
[1740130697769,3.11897682,658.14,656.55,0.30462264]
[1740130697968,3.11897682,658.13,656.55,0.30462264]
[1740130698268,3.11897682,658.12,656.55,0.30462264]
[1740130698468,3.11897682,658.11,656.55,0.30462264]
[1740130698671,3.11897682,658.1,656.55,0.30462264]
[1740130698963,3.11897682,658.09,656.55,0.30462264]
[1740130699170,2.25854771,658.13,656.55,0.30462264]
[1740130699171,3.11897682,658.08,656.68,1.11787049]
[1740130699364,3.11897682,658.07,656.7,0.30455306]
[1740130699564,3.11897682,658.06,656.7,0.30455306]
[1740130699766,3.11897682,658.05,656.7,0.30455306]
[1740130699963,3.11897682,658.04,656.7,0.30455306]
[1740130700164,3.11897682,658.03,656.7,0.30455306]
[1740130700369,3.11897682,658.02,656.7,0.30455306]
[1740130700567,3.11897682,658.01,656.7,0.30455306]
[1740130700866,3.11897682,658.0,656.7,0.30455306]
[1740130701064,3.11897682,657.99,656.7,0.30455306]
[1740130701264,3.11897682,657.98,656.7,0.30455306]
[1740130701465,5.37752453,657.97,656.7,0.30455306]
[1740130701666,3.11897682,657.96,656.7,0.30455306]
[1740130701866,3.11897682,657.95,656.7,0.30455306]
[1740130702064,3.11897682,657.94,656.7,0.30455306]
[1740130702270,3.11897682,657.93,656.72,1.11787049]
[1740130702470,3.11897682,657.92,656.74,0.30453451]
[1740130702670,3.11897682,657.91,656.74,0.30453451]
[1740130702871,3.11897682,657.9,656.74,0.30453451]
[1740130703071,3.11897682,657.89,656.74,0.30453451]
[1740130703271,3.11897682,657.88,656.74,0.30453451]
[1740130703471,2.25854771,657.89,656.74,0.30453451]
[1740130703672,3.11270876,657.88,656.74,0.30453451]
[1740130703870,2.25854771,657.89,656.74,0.30453451]
[1740130704068,3.11271368,657.88,656.74,0.30453451]
[1740130704266,3.11271368,657.87,656.74,0.30453451]
[1740130704573,2.25854771,657.89,656.74,0.30453451]
[1740130704774,3.11271926,657.88,656.74,0.30453451]
[1740130705074,2.25854771,657.89,656.74,0.30453451]
[1740130705274,2.25854771,657.87,656.74,0.30453451]
[1740130706574,2.25854771,657.86,656.74,0.30453451]
[1740130706971,3.11363892,657.85,656.74,0.30453451]
[1740130707172,2.25854771,657.86,656.74,0.30453451]
[1740130707370,3.1136456,657.85,656.74,0.30453451]
[1740130707573,3.1136456,657.84,656.74,0.30453451]
[1740130707773,2.25854771,657.86,656.74,0.30453451]
[1740130707975,5.37299086,657.85,656.74,0.30453451]
[1740130708276,3.11444315,657.84,656.74,0.30453451]
[1740130708475,3.11444315,657.83,656.74,0.30453451]
[1740130708672,3.11444315,657.82,656.74,0.30453451]
[1740130708876,3.11444315,657.81,656.74,0.30453451]
[1740130709075,3.11444315,657.8,656.74,0.30453451]
[1740130709272,2.25854771,657.85,656.74,0.30453451]
[1740130709476,2.25854771,657.84,656.74,0.30453451]
[1740130711278,1.12521337,658.26,656.74,0.30453451]
[1740130711479,3.11859041,658.25,656.74,0.30453451]
[1740130711780,3.11859041,658.24,656.74,0.30453451]
[1740130711981,3.11859041,658.23,656.74,0.30453451]
[1740130712280,3.11859041,658.22,656.74,0.30453451]
[1740130712480,3.11859041,658.21,656.74,0.30453451]
[1740130712780,3.11859041,658.2,656.74,0.30453451]
[1740130713085,3.11859041,658.19,656.74,0.30453451]
[1740130713281,3.11859041,658.18,656.74,0.30453451]
[1740130713474,5.37722154,658.17,656.74,0.30453451]
[1740130713671,3.11859041,658.16,656.74,0.30453451]
[1740130713878,3.11859041,658.15,656.74,0.30453451]
[1740130714073,3.11859041,658.14,656.74,0.30453451]
[1740130714279,3.11859041,658.13,656.74,0.30453451]
[1740130714480,3.11859041,658.12,656.74,0.30453451]
[1740130714673,2.25863113,658.17,656.74,0.30453451]
[1740130714674,3.11859041,658.11,656.74,0.30453451]
[1740130714874,3.11859041,658.1,656.74,0.30453451]
[1740130715075,3.11859041,658.09,656.74,0.30453451]
[1740130715280,3.42250482,658.08,656.74,0.30453451]
[1740130715474,3.42250944,658.07,656.74,0.30453451]
[1740130715678,3.11859041,658.06,656.74,0.30453451]
[1740130715979,3.11859041,658.05,656.74,0.30453451]
[1740130716274,5.37722154,658.04,656.74,0.30453451]
[1740130716478,3.11859041,658.03,656.74,0.30453451]
[1740130716677,3.11859041,658.02,656.74,0.30453451]
[1740130716880,3.11859041,658.01,656.74,0.30453451]
[1740130717083,3.11859041,658.0,656.74,0.30453451]
[1740130717381,3.11859041,657.99,656.74,0.30453451]
[1740130717581,3.11859041,657.98,656.74,0.30453451]
[1740130717774,3.11859041,657.97,656.74,0.30453451]
[1740130717979,3.11859041,657.96,656.74,0.30453451]
[1740130718179,3.11859041,657.95,656.74,0.30453451]
[1740130718480,3.11859041,657.94,656.74,0.30453451]
[1740130718680,3.11859041,657.93,656.74,0.30453451]
[1740130718980,3.11859041,657.92,656.74,0.30453451]
[1740130719176,3.11859041,657.91,656.74,0.30453451]
[1740130719380,3.11859041,657.9,656.74,0.30453451]
[1740130719574,3.11859041,657.89,656.74,0.30453451]
[1740130719776,0.30391903,658.07,656.74,0.30453451]
[1740130719777,3.11859041,657.88,656.74,0.30453451]
[1740130719976,3.11859041,657.87,656.74,0.30453451]
[1740130720181,3.11859041,657.86,656.74,0.30453451]
[1740130720377,3.11859041,657.85,656.74,0.30453451]
[1740130720576,3.11859041,657.84,656.74,0.30453451]
[1740130720781,3.11859041,657.83,656.74,0.30453451]
[1740130721076,3.11859041,657.82,656.74,0.30453451]
[1740130721283,3.11859041,657.81,656.74,0.30453451]
[1740130721482,3.11859041,657.8,656.74,0.30453451]
[1740130721682,3.11859041,657.79,656.74,0.30453451]
[1740130721878,3.11859041,657.78,656.74,0.30453451]
[1740130722078,3.11859041,657.77,656.74,0.30453451]
[1740130722382,3.11859041,657.76,656.74,0.30453451]
[1740130722583,3.11859041,657.75,656.74,0.30453451]
[1740130722784,3.11859041,657.74,656.74,0.30453451]
[1740130722982,3.11859041,657.73,656.74,0.30453451]
[1740130723287,3.11859041,657.72,656.74,0.30453451]
[1740130723485,3.11859041,657.71,656.74,0.30453451]
[1740130723681,3.11859041,657.7,656.74,0.30453451]
[1740130723885,3.11859041,657.69,656.74,0.30453451]
[1740130724080,2.25863113,657.71,656.74,0.30453451]
[1740130724287,3.11962063,657.7,656.74,0.30453451]
[1740130724487,3.11919193,657.69,656.74,0.30453451]
[1740130724688,2.25863113,657.71,656.74,0.30453451]
[1740130725187,2.25863113,657.7,656.74,0.30453451]
[1740130726182,2.25863113,657.69,656.74,0.30453451]
[1740130727888,0.30391903,658.07,656.74,0.30453451]
[1740130728089,3.11755275,658.06,656.74,0.30453451]
[1740130728288,3.11755275,658.05,656.74,0.30453451]
[1740130728487,3.11755275,658.04,656.74,0.30453451]
[1740130728688,3.11755275,658.03,656.74,0.30453451]
[1740130728889,3.11755275,658.02,656.74,0.30453451]
[1740130729083,3.11755275,658.01,656.74,0.30453451]
[1740130729282,3.11755275,658.0,656.74,0.30453451]
[1740130729587,3.11755275,657.99,656.74,0.30453451]
[1740130729887,3.11755275,657.98,656.74,0.30453451]
[1740130730086,3.11755275,657.97,656.74,0.30453451]
[1740130730287,3.11755275,657.96,656.74,0.30453451]
[1740130730486,3.11755275,657.95,656.74,0.30453451]
[1740130730783,3.11755275,657.94,656.74,0.30453451]
[1740130731089,3.11755275,657.93,656.74,0.30453451]
[1740130731289,5.37564522,657.92,656.74,0.30453451]
[1740130731489,3.11755275,657.91,656.74,0.30453451]
[1740130731690,3.11755275,657.9,656.74,0.30453451]
[1740130731886,3.11755275,657.89,656.74,0.30453451]
[1740130732091,3.11755275,657.88,656.74,0.30453451]
[1740130732393,3.11755275,657.87,656.74,0.30453451]
[1740130732591,3.11755275,657.86,656.74,0.30453451]
[1740130732889,3.11755275,657.85,656.74,0.30453451]
[1740130733093,3.11755275,657.84,656.74,0.30453451]
[1740130733294,3.11650406,657.83,656.74,0.30453451]
[1740130733495,2.25809247,657.88,656.74,0.30453451]
[1740130733695,3.11649382,657.87,656.74,0.30453451]
[1740130733889,3.11649382,657.86,656.74,0.30453451]
[1740130734094,3.11649382,657.85,656.74,0.30453451]
[1740130734289,3.11649382,657.84,656.74,0.30453451]
[1740130734487,3.11649382,657.83,656.74,0.30453451]
[1740130734688,3.11649382,657.82,656.74,0.30453451]
[1740130734890,3.11649382,657.81,656.74,0.30453451]
[1740130735192,3.11649382,657.8,656.74,0.30453451]
[1740130735390,3.11649382,657.79,656.74,0.30453451]
[1740130735590,3.11649382,657.78,656.74,0.30453451]
[1740130735790,3.11649382,657.77,656.74,0.30453451]
[1740130735991,3.11649382,657.76,656.74,0.30453451]
[1740130736196,3.10378493,657.75,656.74,0.30453451]
[1740130736497,2.25809247,657.78,656.74,0.30453451]
[1740130736498,3.10378493,657.74,656.74,0.30453451]
[1740130736697,2.25809247,657.78,656.74,0.30453451]
[1740130737098,2.25809247,657.77,656.74,0.30453451]
[1740130738407,2.25809247,657.76,656.74,0.30453451]
[1740130739903,2.25809247,657.75,656.74,0.30453451]
[1740130741607,2.25809247,657.74,656.74,0.30453451]
[1740130743211,2.25809247,657.73,656.74,0.30453451]
[1740130744803,2.25809247,657.72,656.74,0.30453451]
[1740130746010,2.25809247,657.71,656.74,0.30453451]
[1740130746206,3.11249631,657.7,656.74,0.30453451]
[1740130746407,3.11249631,657.69,656.74,0.30453451]
[1740130746711,3.11249631,657.68,656.74,0.30453451]
[1740130747007,3.11249631,657.67,656.74,0.30453451]
[1740130747208,3.11249631,657.66,656.74,0.30453451]
[1740130747405,3.11249631,657.65,656.74,0.30453451]
[1740130747609,3.11249631,657.64,656.74,0.30453451]
[1740130747809,3.11249631,657.63,656.74,0.30453451]
[1740130748109,3.11249631,657.62,656.74,0.30453451]
[1740130748306,3.11249631,657.61,656.74,0.30453451]
[1740130748511,3.11249631,657.6,656.74,0.30453451]
[1740130748711,3.11249631,657.59,656.74,0.30453451]
[1740130749011,3.11249631,657.58,656.74,0.30453451]
[1740130749211,3.11249631,657.57,656.74,0.30453451]
[1740130749512,3.11249631,657.56,656.74,0.30453451]
[1740130749710,3.11249631,657.55,656.74,0.30453451]
[1740130749908,3.11249631,657.54,656.74,0.30453451]
[1740130750107,3.11249631,657.53,656.74,0.30453451]
[1740130750309,3.11141257,657.52,656.74,0.30453451]
[1740130750615,2.25809247,657.51,656.74,0.30453451]
[1740130752314,2.25809247,657.5,656.74,0.30453451]
[1740130752713,3.11131262,657.49,656.74,0.30453451]
[1740130752912,3.11131262,657.48,656.74,0.30453451]
[1740130753113,3.11131262,657.47,656.74,0.30453451]
[1740130753414,2.25809247,657.5,656.74,0.30453451]
[1740130754215,3.11116739,657.62,656.74,0.30453451]
[1740130754408,1.58869652,657.65,656.74,0.30453451]
[1740130754613,5.3653582,657.64,656.74,0.30453451]
[1740130754814,3.11122593,657.63,656.74,0.30453451]
[1740130755114,2.25413227,657.64,656.74,0.30453451]
[1740130755115,3.11122593,657.62,656.74,0.30453451]
[1740130755314,3.11122593,657.61,656.74,0.30453451]
[1740130755516,3.11122593,657.6,656.74,0.30453451]
[1740130755714,3.11122593,657.59,656.74,0.30453451]
[1740130755914,3.11122593,657.58,656.74,0.30453451]
[1740130756114,3.11122593,657.57,656.74,0.30453451]
[1740130756316,3.11122593,657.56,656.74,0.30453451]
[1740130756615,3.11122593,657.55,656.74,0.30453451]
[1740130756815,3.11122593,657.54,656.74,0.30453451]
[1740130757019,2.25413227,657.57,656.74,0.30453451]
[1740130757217,3.11150503,657.56,656.74,0.30453451]
[1740130757417,5.3656373,657.55,656.74,0.30453451]
[1740130757618,2.25413227,657.55,656.74,0.30453451]
[1740130758415,5.36563727,657.54,656.74,0.30453451]
[1740130758622,3.111505,657.53,656.74,0.30453451]
[1740130758813,3.111505,657.52,656.74,0.30453451]
[1740130759018,3.111505,657.51,656.74,0.30453451]
[1740130759220,5.36563727,657.5,656.74,0.30453451]
[1740130759521,3.111505,657.49,656.74,0.30453451]
[1740130759716,3.111505,657.48,656.74,0.30453451]
[1740130759918,3.111505,657.47,656.74,0.30453451]
[1740130760115,3.111505,657.46,656.74,0.30453451]
[1740130760314,3.111505,657.45,656.74,0.30453451]
[1740130760520,2.25413227,657.5,656.74,0.30453451]
[1740130761521,2.25413227,657.49,656.74,0.30453451]
[1740130762824,3.11262997,658.02,656.74,0.30453451]
[1740130763023,3.11262997,658.01,656.74,0.30453451]
[1740130763324,3.11262997,658.0,656.74,0.30453451]
[1740130763518,3.11262997,657.99,656.74,0.30453451]
[1740130763718,3.11262997,657.98,656.74,0.30453451]
[1740130763922,3.11262997,657.97,656.74,0.30453451]
[1740130764123,3.11262997,657.96,656.74,0.30453451]
[1740130764325,5.36676224,657.95,656.74,0.30453451]
[1740130764524,3.11262997,657.94,656.74,0.30453451]
[1740130764825,2.25413227,657.95,656.74,0.30453451]
[1740130766623,2.25413227,657.94,656.74,0.30453451]
[1740130768023,2.25413227,658.06,656.74,0.30453451]
[1740130769027,4.70323047,658.05,656.74,0.30453451]
[1740130769228,3.11518039,658.04,656.74,0.30453451]
[1740130769423,3.11518039,658.03,656.74,0.30453451]
[1740130769628,3.11518039,658.02,656.74,0.30453451]
[1740130769829,3.11511209,658.01,656.74,0.30453451]
[1740130770130,3.11511209,658.0,656.74,0.30453451]
[1740130770329,3.11511209,657.99,656.74,0.30453451]
[1740130770523,3.11511209,657.98,656.74,0.30453451]
[1740130770729,3.11511209,657.97,656.74,0.30453451]
[1740130771028,3.11511209,657.96,656.74,0.30453451]
[1740130771228,3.11511209,657.95,656.74,0.30453451]
[1740130771426,3.11511209,657.94,656.74,0.30453451]
[1740130771627,3.11511209,657.93,656.74,0.30453451]
[1740130771823,3.11511209,657.92,656.74,0.30453451]
[1740130772029,3.11511209,657.91,656.74,0.30453451]
[1740130772228,3.11511209,657.9,656.74,0.30453451]
[1740130772426,3.11511209,657.89,656.74,0.30453451]
[1740130772627,3.11511209,657.88,656.74,0.30453451]
[1740130772827,3.11511209,657.87,656.74,0.30453451]
[1740130773026,3.11511209,657.86,656.74,0.30453451]
[1740130773228,3.11511209,657.85,656.74,0.30453451]
[1740130773429,3.11313521,657.84,656.74,0.30453451]
[1740130773629,2.25413227,657.86,656.74,0.30453451]
[1740130773830,3.11314628,657.85,656.74,0.30453451]
[1740130774032,2.25413227,657.86,656.74,0.30453451]
[1740130774227,3.11311819,657.85,656.74,0.30453451]
[1740130774431,2.25413227,657.86,656.74,0.30453451]
[1740130774633,3.11228935,657.85,656.74,0.30453451]
[1740130774928,3.11227624,657.84,656.74,0.30453451]
[1740130775231,2.25413227,657.86,656.74,0.30453451]
[1740130775431,1.58805008,658.05,656.74,0.30453451]
[1740130775630,3.11141113,658.04,656.74,0.30453451]
[1740130775823,1.58805008,658.05,656.74,0.30453451]
[1740130775824,3.11141113,658.03,656.74,0.30453451]
[1740130776026,3.11141113,658.02,656.74,0.30453451]
[1740130776228,3.11141113,658.01,656.74,0.30453451]
[1740130776426,3.11141113,658.0,656.74,0.30453451]
[1740130776630,3.11141113,657.99,656.74,0.30453451]
[1740130776831,2.25372091,658.02,656.74,0.30453451]
[1740130777532,1.58805008,658.05,656.74,0.30453451]
[1740130779126,3.1104134,658.04,656.74,0.30453451]
[1740130779333,3.1104134,658.03,656.74,0.30453451]
[1740130779527,3.1104134,658.02,656.74,0.30453451]
[1740130779731,3.1104134,658.01,656.74,0.30453451]
[1740130779931,3.1104134,658.0,656.74,0.30453451]
[1740130780127,3.1104134,657.99,656.74,0.30453451]
[1740130780329,3.1104134,657.98,656.74,0.30453451]
[1740130780533,3.1104134,657.97,656.74,0.30453451]
[1740130780833,3.1104134,657.96,656.74,0.30453451]
[1740130781035,2.25372091,657.96,656.74,0.30453451]
[1740130782027,2.25372091,657.95,656.74,0.30453451]
[1740130782634,3.10786392,657.94,656.74,0.30453451]
[1740130782835,3.10786392,657.93,656.74,0.30453451]
[1740130783133,3.10786392,657.92,656.74,0.30453451]
[1740130783333,3.10786392,657.91,656.74,0.30453451]
[1740130783527,3.10786392,657.9,656.74,0.30453451]
[1740130783728,2.25372091,657.95,656.74,0.30453451]
[1740130783928,3.10821119,657.94,656.74,0.30453451]
[1740130784134,3.10821119,657.93,656.74,0.30453451]